[Event "SVK ECo-C Extraliga 2018-19"]
[Site "Slovakia"]
[Date "2019.02.16"]
[Round "5.7"]
[White "Hros, Roman"]
[Black "Briestensky, Rastislav"]
[Result "0-1"]
[ECO "A16"]
[WhiteElo "2204"]
[BlackElo "2317"]
[Annotator "NA"]
[PlyCount "136"]
[EventDate "2018.11.10"]
[EventType "team-tourn"]
[EventCountry "SVK"]
[SourceTitle "playchess.com"]
[Source "ChessBase"]
[SourceQuality "1"]
[WhiteTeam "Liptovska"]
[BlackTeam "Slovan"]
[TimeControl "40/5400+30:1800+30"]

1. c4 {[%emt 0:01:41]} Nf6 {[%emt 0:00:09]} 2. Nc3 {[%emt 0:00:06]} e5 {[%emt 0:00:36]} 3. e3 {[%emt 0:02:06]} Bb4 {[%emt 0:03:14]} 4. Nge2 {[%emt 0:01:08]} O-O {[%emt 0:03:40]} 5. a3 {[%emt 0:00:17]} Be7 {[%emt 0:00:46]} 6. Ng3 {[%emt 0:22:49]} d5 {[%emt 0:10:34]} 7. cxd5 {[%emt 0:02:39]} Nxd5 {[%emt 0:00:10]} 8. Bc4 {[%emt 0:01:34]} Nb6 {[%emt 0:00:57]} 9. Be2 {[%emt 0:03:34]} c5 {[%emt 0:07:57]} 10. O-O {[%emt 0:03:20]} Nc6 {[%emt 0:00:31]} 11. d3 {[%emt 0:23:57]} Be6 {[%emt 0:04:38]} 12. b3 {[%emt 0:02:57]} f5 {[%emt 0:02:08]} 13. Bd2 {[%emt 0:03:55]} Qd7 {[%emt 0:03:44]} 14. Qc2 {[%emt 0:04:30]} Rac8 {[%emt 0:02:50]} 15. Qb2 {[%emt 0:00:24]} Na5 {[%emt 0:09:38]} 16. Bd1 {[%emt 0:02:57]} Qxd3 {[%emt 0:04:58]} 17. Bc2 {[%emt 0:00:07]} Qd7 {[%emt 0:01:30]} 18. Rad1 {[%emt 0:00:04]} Nc6 {[%emt 0:03:00]} 19. e4 {[%emt 0:00:47]} fxe4 {[%emt 0:03:15]} 20. Ncxe4 {[%emt 0:05:02]} Nd4 {[%emt 0:02:39]} 21. f4 {[%emt 0:01:21]} Nxc2 {[%emt 0:04:10]} 22. Qxc2 {[%emt 0:00:15]} Qb5 {[%emt 0:04:00]} 23. fxe5 {[%emt 0:03:03]} Qxb3 {[%emt 0:07:52]} 24. Qxb3 {[%emt 0:01:38]} Bxb3 {[%emt 0:00:15]} 25. Rxf8+ {[%emt 0:00:39]} Bxf8 {[%emt 0:03:21]} 26. Re1 {[%emt 0:00:27]} Re8 {[%emt 0:02:42]} 27. Bc3 {[%emt 0:06:34]} Nd5 {[%emt 0:03:25]} 28. Bb2 {[%emt 0:00:01]} Nf4 {[%emt 0:01:44]} 29. Re3 {[%emt 0:01:41]} Bd5 {[%emt 0:01:50]} 30. Rf3 {[%emt 0:02:20]} Ne6 {[%emt 0:02:21]} 31. Rd3 {[%emt 0:00:26]} Bc6 {[%emt 0:01:20]} 32. Nd6 {[%emt 0:00:58]} Rd8 {[%emt 0:00:14]} 33. Rd2 {[%emt 0:01:01]} g6 {[%emt 0:01:27]} 34. h4 {[%emt 0:01:32]} Bh6 {[%emt 0:00:29]} 35. Rc2 {[%emt 0:00:51]} Be3+ {[%emt 0:00:41]} 36. Kh2 {[%emt 0:00:22]} Bf4 {[%emt 0:00:42]} 37. Re2 {[%emt 0:00:53]} Nd4 {[%emt 0:01:40]} 38. Re1 {[%emt 0:00:26]} Bd5 {[%emt 0:00:56]} 39. h5 {[%emt 0:00:31]} gxh5 {[%emt 0:00:15]} 40. Kh3 {[%emt 0:00:25]} Bxg3 {[%emt 0:01:35]} 41. Kxg3 {[%emt 0:30:13]} Rd7 {[%emt 0:30:31]} 42. Bxd4 {[%emt 0:00:00]} cxd4 {[%emt 0:00:00]} 43. Rd1 {[%emt 0:00:00]} Rg7+ {[%emt 0:00:00]} 44. Kh3 {[%emt 0:00:00]} Rg5 {[%emt 0:00:00]} 45. Rxd4 {[%emt 0:00:00]} Rxe5 {[%emt 0:00:00]} 46. Kh2 {[%emt 0:00:00]} Bc6 {[%emt 0:00:00]} 47. Nc4 {[%emt 0:01:00]} Rg5 {[%emt 0:00:00]} 48. Rd2 {[%emt 0:00:14]} Kf7 {[%emt 0:00:00]} 49. Re2 {[%emt 0:00:47]} Kf6 {[%emt 0:00:00]} 50. g3 {[%emt 0:02:00]} Rc5 {[%emt 0:00:00]} 51. Rf2+ {[%emt 0:00:44]} Kg6 {[%emt 0:00:00]} 52. Rf4 {[%emt 0:01:10]} b5 {[%emt 0:00:00]} 53. Ne3 {[%emt 0:00:30]} Rc1 {[%emt 0:00:00]} 54. g4 {[%emt 0:00:30]} h4 {[%emt 0:00:00]} 55. Nf1 {[%emt 0:00:24]} Rc3 {[%emt 0:00:00]} 56. Rd4 {[%emt 0:00:28]} Kg5 {[%emt 0:00:00]} 57. Rd6 {[%emt 0:00:36]} Kxg4 {[%emt 0:00:00]} 58. Rd4+ {[%emt 0:00:33]} Kg5 {[%emt 0:00:00]} 59. Rd6 {[%emt 0:00:14]} a5 {[%emt 0:00:00]} 60. Rd4 {[%emt 0:00:42]} Rxa3 {[%emt 0:00:00]} 61. Nd2 {[%emt 0:00:34]} Rc3 {[%emt 0:00:00]} 62. Rd6 {[%emt 0:00:32]} a4 {[%emt 0:00:00]} 63. Rd8 {[%emt 0:00:27]} a3 {[%emt 0:00:00]} 64. Rc8 {[%emt 0:00:23]} a2 {[%emt 0:00:00]} 65. Rd8 {[%emt 0:00:40]} Rc1 {[%emt 0:01:06]} 66. Rg8+ {[%emt 0:00:29]} Kh5 {[%emt 0:00:48]} 67. Nf3 {[%emt 0:00:31]} Rc2+ {[%emt 0:01:40]} 68. Kh3 {[%emt 0:00:30]} Bd7+ {[%emt 0:00:09]} 0-1

[Event "SVK ECo-C Extraliga 2018-19"]
[Site "Slovakia"]
[Date "2019.02.16"]
[Round "5.8"]
[White "Csonka, Attila Istvan"]
[Black "Kostelny, Jozef"]
[Result "1-0"]
[ECO "B00"]
[WhiteElo "2369"]
[BlackElo "2212"]
[Annotator "NA"]
[PlyCount "89"]
[EventDate "2018.11.10"]
[EventType "team-tourn"]
[EventCountry "SVK"]
[SourceTitle "playchess.com"]
[Source "ChessBase"]
[SourceQuality "1"]
[WhiteTeam "Streda"]
[BlackTeam "Zilina"]
[TimeControl "40/5400+30:1800+30"]

1. e4 {[%emt 0:00:00]} c5 {[%emt 0:02:00]} 2. Nf3 {[%emt 0:00:00]} Nc6 {[%emt 0:00:08]} 3. d4 {[%emt 0:00:00]} cxd4 {[%emt 0:00:06]} 4. Nxd4 {[%emt 0:00:00]} Nf6 {[%emt 0:00:14]} 5. Nc3 {[%emt 0:00:01]} d6 {[%emt 0:00:27]} 6. Bc4 {[%emt 0:00:16]} Qb6 {[%emt 0:01:18]} 7. Nxc6 {[%emt 0:02:02]} bxc6 {[%emt 0:00:07]} 8. Qe2 {[%emt 0:00:06]} e6 {[%emt 0:03:50]} 9. O-O {[%emt 0:00:21]} Nd7 {[%emt 0:01:39]} 10. Rd1 {[%emt 0:08:14]} Be7 {[%emt 0:02:36]} 11. Be3 {[%emt 0:05:25]} Qc7 {[%emt 0:03:00]} 12. Bf4 {[%emt 0:01:24]} O-O {[%emt 0:03:16]} 13. Rd2 {[%emt 0:03:25]} Rb8 {[%emt 0:03:10]} 14. Bb3 {[%emt 0:05:43]} Nc5 {[%emt 0:15:25]} 15. Qh5 {[%emt 0:03:31]} Nxb3 {[%emt 0:10:59]} 16. axb3 {[%emt 0:00:25]} e5 {[%emt 0:01:36]} 17. Be3 {[%emt 0:03:02]} Rb7 {[%emt 0:03:22]} 18. Rf1 {[%emt 0:04:37]} f5 {[%emt 0:10:16]} 19. f4 {[%emt 0:01:03]} g6 {[%emt 0:05:04]} 20. Qe2 {[%emt 0:03:13]} fxe4 {[%emt 0:11:16]} 21. Nxe4 {[%emt 0:04:46]} Rb4 {[%emt 0:02:06]} 22. Nf2 {[%emt 0:11:47]} exf4 {[%emt 0:02:17]} 23. Bd4 {[%emt 0:00:07]} f3 {[%emt 0:03:48]} 24. gxf3 {[%emt 0:00:19]} c5 {[%emt 0:05:35]} 25. c3 {[%emt 0:01:07]} Rb6 {[%emt 0:03:50]} 26. Re1 {[%emt 0:03:50]} Bh4 {[%emt 0:02:59]} 27. Qe4 {[%emt 0:02:39]} Bxf2+ {[%emt 0:01:30]} 28. Bxf2 {[%emt 0:00:05]} Qf7 {[%emt 0:00:21]} 29. b4 {[%emt 0:00:41]} Bb7 {[%emt 0:00:29]} 30. Qe6 {[%emt 0:00:08]} Rb5 {[%emt 0:01:19]} 31. Qxf7+ {[%emt 0:01:15]} Rxf7 {[%emt 0:00:35]} 32. Rxd6 {[%emt 0:00:06]} cxb4 {[%emt 0:00:36]} 33. Bd4 {[%emt 0:00:58]} bxc3 {[%emt 0:00:29]} 34. Re8+ {[%emt 0:00:16]} Rf8 {[%emt 0:00:03]} 35. Re7 {[%emt 0:00:05]} Rc8 {[%emt 0:01:00]} 36. bxc3 {[%emt 0:01:58]} Rd5 {[%emt 0:00:38]} 37. Rf6 {[%emt 0:00:21]} Rb5 {[%emt 0:00:28]} 38. Rff7 {[%emt 0:00:15]} Rg5+ {[%emt 0:00:20]} 39. Kf2 {[%emt 0:00:06]} Bd5 {[%emt 0:00:07]} 40. Rxh7 {[%emt 0:00:10]} Rh5 {[%emt 0:00:43]} 41. Rhg7+ {[%emt 0:33:19]} Kf8 {[%emt 0:30:33]} 42. Rxa7 {[%emt 0:00:18]} Rxh2+ {[%emt 0:00:00]} 43. Kg3 {[%emt 0:00:00]} Rh6 {[%emt 0:00:00]} 44. Rgd7 {[%emt 0:00:00]} Rh5 {[%emt 0:00:00]} 45. Bc5+ {[%emt 0:00:00]} 1-0

[Event "SVK ECo-C Extraliga 2018-19"]
[Site "Slovakia"]
[Date "2019.02.16"]
[Round "5.8"]
[White "Petran, Peter"]
[Black "Motycakova, Monika"]
[Result "1-0"]
[ECO "A09"]
[WhiteElo "2236"]
[BlackElo "2156"]
[Annotator "NA"]
[PlyCount "129"]
[EventDate "2018.11.10"]
[EventType "team-tourn"]
[EventCountry "SVK"]
[SourceTitle "playchess.com"]
[Source "ChessBase"]
[SourceQuality "1"]
[WhiteTeam "Slovan"]
[BlackTeam "Liptovska"]
[TimeControl "40/5400+30:1800+30"]

1. Nf3 {[%emt 0:00:00]} d5 {[%emt 0:04:45]} 2. c4 {[%emt 0:00:10]} d4 {[%emt 0:00:51]} 3. e3 {[%emt 0:04:10]} c5 {[%emt 0:07:59]} 4. exd4 {[%emt 0:03:34]} cxd4 {[%emt 0:00:06]} 5. b4 {[%emt 0:01:39]} g6 {[%emt 0:05:23]} 6. d3 {[%emt 0:00:50]} Bg7 {[%emt 0:00:31]} 7. Nbd2 {[%emt 0:01:49]} b6 {[%emt 0:11:12]} 8. g3 {[%emt 0:02:53]} Bb7 {[%emt 0:01:20]} 9. Bg2 {[%emt 0:00:09]} e5 {[%emt 0:08:08]} 10. O-O {[%emt 0:00:32]} Ne7 {[%emt 0:00:38]} 11. Re1 {[%emt 0:00:15]} Nd7 {[%emt 0:07:50]} 12. Ne4 {[%emt 0:05:53]} Qc7 {[%emt 0:04:36]} 13. a4 {[%emt 0:15:42]} O-O {[%emt 0:03:21]} 14. Ba3 {[%emt 0:01:48]} Rfe8 {[%emt 0:03:25]} 15. c5 {[%emt 0:06:45]} Bxe4 {[%emt 0:04:32]} 16. Rxe4 {[%emt 0:01:59]} bxc5 {[%emt 0:05:00]} 17. Rc1 {[%emt 0:02:30]} Rab8 {[%emt 0:06:02]} 18. Re1 {[%emt 0:03:16]} Nc6 {[%emt 0:12:49]} 19. bxc5 {[%emt 0:02:55]} Nf6 {[%emt 0:06:18]} 20. Ng5 {[%emt 0:02:02]} h6 {[%emt 0:03:00]} 21. Ne4 {[%emt 0:00:22]} Nxe4 {[%emt 0:00:06]} 22. Bxe4 {[%emt 0:00:08]} Rec8 {[%emt 0:00:31]} 23. Qc2 {[%emt 0:00:56]} Qd7 {[%emt 0:01:48]} 24. Rb1 {[%emt 0:01:35]} Kh7 {[%emt 0:00:53]} 25. Qc4 {[%emt 0:01:57]} Na5 {[%emt 0:00:37]} 26. Qc2 {[%emt 0:03:18]} Nc6 {[%emt 0:00:03]} 27. Rb5 {[%emt 0:02:19]} a6 {[%emt 0:01:03]} 28. Rb3 {[%emt 0:05:45]} Rxb3 {[%emt 0:00:30]} 29. Qxb3 {[%emt 0:00:05]} Rc7 {[%emt 0:00:15]} 30. Rb1 {[%emt 0:02:06]} Bf8 {[%emt 0:00:04]} 31. Qc2 {[%emt 0:05:44]} Qc8 {[%emt 0:00:05]} 32. Qa2 {[%emt 0:04:34]} Nd8 {[%emt 0:00:47]} 33. c6 {[%emt 0:04:10]} Bxa3 {[%emt 0:00:05]} 34. Qxa3 {[%emt 0:00:02]} Nxc6 {[%emt 0:00:14]} 35. Qd6 {[%emt 0:00:23]} Qd8 {[%emt 0:01:30]} 36. Qc5 {[%emt 0:02:09]} Ne7 {[%emt 0:00:58]} 37. Qxe5 {[%emt 0:00:29]} Ng8 {[%emt 0:00:37]} 38. h4 {[%emt 0:02:50]} Nf6 {[%emt 0:00:23]} 39. Bf3 {[%emt 0:00:47]} h5 {[%emt 0:00:22]} 40. Kg2 {[%emt 0:00:38]} Kg7 {[%emt 0:00:25]} 41. Rb6 {[%emt 0:31:43]} Ra7 {[%emt 0:15:15]} 42. Rd6 {[%emt 0:00:00]} Qe7 {[%emt 0:00:05]} 43. Qxe7 {[%emt 0:00:00]} Rxe7 {[%emt 0:00:05]} 44. Rxa6 {[%emt 0:00:00]} Rd7 {[%emt 0:02:06]} 45. Rc6 {[%emt 0:00:00]} Ng4 {[%emt 0:03:27]} 46. Bxg4 {[%emt 0:00:00]} hxg4 {[%emt 0:00:42]} 47. Kf1 {[%emt 0:00:00]} Kf8 {[%emt 0:03:33]} 48. Ke2 {[%emt 0:00:00]} Ke7 {[%emt 0:00:07]} 49. Kd2 {[%emt 0:00:00]} Rd5 {[%emt 0:00:34]} 50. Rc4 {[%emt 0:00:00]} Rf5 {[%emt 0:03:26]} 51. Ke1 {[%emt 0:00:00]} Rd5 {[%emt 0:00:07]} 52. Kd1 {[%emt 0:00:00]} Ke6 {[%emt 0:01:17]} 53. Kc1 {[%emt 0:00:00]} Ke7 {[%emt 0:03:22]} 54. Kb2 {[%emt 0:00:00]} Rf5 {[%emt 0:00:54]} 55. Rc2 {[%emt 0:00:00]} Rf3 {[%emt 0:01:04]} 56. Rd2 {[%emt 0:00:00]} Kd6 {[%emt 0:00:04]} 57. Kb3 {[%emt 0:00:00]} Kc5 {[%emt 0:00:47]} 58. a5 {[%emt 0:03:50]} Kb5 {[%emt 0:01:56]} 59. a6 {[%emt 0:00:10]} Kxa6 {[%emt 0:00:33]} 60. Kc4 {[%emt 0:00:03]} Kb6 {[%emt 0:00:29]} 61. Kxd4 {[%emt 0:00:06]} Kc6 {[%emt 0:00:14]} 62. Ra2 {[%emt 0:01:07]} Rf5 {[%emt 0:00:27]} 63. Ke3 {[%emt 0:02:00]} Kd6 {[%emt 0:01:02]} 64. Ra4 {[%emt 0:00:44]} Rf3+ {[%emt 0:00:42]} 65. Ke2 {[%emt 0:00:06]} 1-0

[Event "SVK ECo-C Extraliga 2018-19"]
[Site "Slovakia"]
[Date "2019.02.16"]
[Round "5.8"]
[White "Federic, Jozef"]
[Black "Maslikova, Veronika"]
[Result "1-0"]
[ECO "A48"]
[WhiteElo "2218"]
[BlackElo "2229"]
[Annotator "NA"]
[PlyCount "59"]
[EventDate "2018.11.10"]
[EventType "team-tourn"]
[EventCountry "SVK"]
[SourceTitle "playchess.com"]
[Source "ChessBase"]
[SourceQuality "1"]
[WhiteTeam "Modra"]
[BlackTeam "Podhajska"]
[TimeControl "40/5400+30:1800+30"]

1. d4 {[%emt 0:00:00]} Nf6 {[%emt 0:00:00]} 2. Nf3 {[%emt 0:00:00]} g6 {[%emt 0:00:00]} 3. Nbd2 {[%emt 0:03:01]} d5 {[%emt 0:04:50]} 4. c4 {[%emt 0:01:41]} c6 {[%emt 0:02:48]} 5. e3 {[%emt 0:02:46]} Bg7 {[%emt 0:02:07]} 6. Bd3 {[%emt 0:01:09]} O-O {[%emt 0:01:30]} 7. O-O {[%emt 0:00:57]} Nbd7 {[%emt 0:09:00]} 8. h3 {[%emt 0:13:23]} Qc7 {[%emt 0:11:13]} 9. Qc2 {[%emt 0:09:41]} Qb8 {[%emt 0:09:18]} 10. b3 {[%emt 0:04:24]} a5 {[%emt 0:06:47]} 11. Bb2 {[%emt 0:03:11]} b6 {[%emt 0:07:01]} 12. Rfe1 {[%emt 0:05:02]} Bb7 {[%emt 0:03:11]} 13. Rad1 {[%emt 0:02:45]} c5 {[%emt 0:12:03]} 14. e4 {[%emt 0:03:53]} dxe4 {[%emt 0:02:24]} 15. Nxe4 {[%emt 0:00:28]} cxd4 {[%emt 0:02:18]} 16. Nxd4 {[%emt 0:01:22]} Ne5 {[%emt 0:05:30]} 17. Nxf6+ {[%emt 0:02:19]} Bxf6 {[%emt 0:00:04]} 18. Be4 {[%emt 0:00:31]} Rc8 {[%emt 0:09:41]} 19. Nb5 {[%emt 0:03:40]} Nc6 {[%emt 0:03:17]} 20. Bxf6 {[%emt 0:04:10]} exf6 {[%emt 0:00:02]} 21. Qb2 {[%emt 0:06:21]} Re8 {[%emt 0:04:25]} 22. Qxf6 {[%emt 0:01:15]} Re6 {[%emt 0:00:07]} 23. Qc3 {[%emt 0:01:40]} Nb4 {[%emt 0:01:56]} 24. Bxb7 {[%emt 0:01:40]} Rxe1+ {[%emt 0:00:02]} 25. Rxe1 {[%emt 0:00:28]} Qxb7 {[%emt 0:00:01]} 26. Qf6 {[%emt 0:02:30]} Qd7 {[%emt 0:01:16]} 27. Nd6 {[%emt 0:02:59]} Rf8 {[%emt 0:00:46]} 28. Re7 {[%emt 0:00:47]} Qd8 {[%emt 0:00:50]} 29. Nxf7 {[%emt 0:00:43]} Qxe7 {[%emt 0:00:20]} 30. Nh6# 1-0

[Event "SVK ECo-C Extraliga 2018-19"]
[Site "Slovakia"]
[Date "2019.02.17"]
[Round "6"]
[White "Maslik, Miroslav"]
[Black "Kukel, Imre"]
[Result "1-0"]
[ECO "A57"]
[WhiteElo "2361"]
[BlackElo "2292"]
[Annotator "NA"]
[PlyCount "69"]
[EventDate "2018.11.10"]
[EventType "team-tourn"]
[EventCountry "SVK"]
[SourceTitle "playchess.com"]
[Source "ChessBase"]
[SourceQuality "1"]
[WhiteTeam "Modra"]
[BlackTeam "Komarno"]
[TimeControl "40/5400+30:1800+30"]

1. d4 {[%emt 0:07:06]} Nf6 {[%emt 0:01:15]} 2. c4 {[%emt 0:04:02]} c5 {[%emt 0:03:41]} 3. d5 {[%emt 0:00:22]} b5 {[%emt 0:01:36]} 4. cxb5 {[%emt 0:00:17]} a6 {[%emt 0:00:04]} 5. b6 {[%emt 0:00:11]} e6 {[%emt 0:00:04]} 6. Nc3 {[%emt 0:01:33]} Nxd5 {[%emt 0:01:46]} 7. Nxd5 {[%emt 0:01:15]} exd5 {[%emt 0:00:03]} 8. Qxd5 {[%emt 0:00:14]} Nc6 {[%emt 0:00:03]} 9. e4 {[%emt 0:01:33]} Bb7 {[%emt 0:08:19]} 10. Bc4 {[%emt 0:02:22]} Qe7 {[%emt 0:02:53]} 11. Bg5 {[%emt 0:19:17]} f6 {[%emt 0:07:39]} 12. Bd2 {[%emt 0:00:07]} Na5 {[%emt 0:24:20]} 13. Bxa5 {[%emt 0:00:12]} Bxd5 {[%emt 0:01:27]} 14. Bxd5 {[%emt 0:01:07]} Rb8 {[%emt 0:02:46]} 15. Nf3 {[%emt 0:05:16]} Qd8 {[%emt 0:01:43]} 16. Nd2 {[%emt 0:05:23]} Bd6 {[%emt 0:03:52]} 17. Nc4 {[%emt 0:02:59]} Qe7 {[%emt 0:00:01]} 18. O-O-O {[%emt 0:02:20]} Kf8 {[%emt 0:03:21]} 19. g3 {[%emt 0:02:10]} Be5 {[%emt 0:01:51]} 20. f4 {[%emt 0:03:35]} Bd4 {[%emt 0:00:01]} 21. e5 {[%emt 0:03:55]} g6 {[%emt 0:05:23]} 22. b7 {[%emt 0:04:00]} fxe5 {[%emt 0:07:08]} 23. Bc7 {[%emt 0:02:39]} Kg7 {[%emt 0:00:03]} 24. Bd6 {[%emt 0:00:36]} Qf6 {[%emt 0:01:11]} 25. Rxd4 {[%emt 0:00:16]} Qxd6 {[%emt 0:00:16]} 26. Nxd6 {[%emt 0:00:11]} exd4 {[%emt 0:00:02]} 27. Re1 {[%emt 0:01:40]} Kf6 {[%emt 0:00:03]} 28. g4 {[%emt 0:00:53]} h6 {[%emt 0:00:01]} 29. g5+ {[%emt 0:00:37]} hxg5 {[%emt 0:01:06]} 30. fxg5+ {[%emt 0:01:23]} Kxg5 {[%emt 0:00:05]} 31. Nf7+ {[%emt 0:00:06]} Kf6 {[%emt 0:00:01]} 32. Nxh8 {[%emt 0:00:41]} Rxh8 {[%emt 0:00:01]} 33. Kd2 {[%emt 0:03:08]} Rxh2+ {[%emt 0:00:06]} 34. Kd3 {[%emt 0:00:02]} Rxb2 {[%emt 0:00:21]} 35. Bb3 {[%emt 0:00:02]} 1-0

[Event "SVK ECo-C Extraliga 2018-19"]
[Site "Slovakia"]
[Date "2019.02.17"]
[Round "6"]
[White "Vojtek, Vladimir"]
[Black "Druska, Juraj"]
[Result "0-1"]
[ECO "B21"]
[WhiteElo "2313"]
[BlackElo "2443"]
[Annotator "NA"]
[PlyCount "80"]
[EventDate "2018.11.10"]
[EventType "team-tourn"]
[EventCountry "SVK"]
[SourceTitle "playchess.com"]
[Source "ChessBase"]
[SourceQuality "1"]
[WhiteTeam "Dubnica"]
[BlackTeam "Prakovce"]
[TimeControl "40/5400+30:1800+30"]

1. e4 {[%emt 0:00:00]} c5 {[%emt 0:00:49]} 2. f4 {[%emt 0:00:00]} g6 {[%emt 0:13:40]} 3. Nf3 {[%emt 0:00:08]} Bg7 {[%emt 0:00:06]} 4. c3 {[%emt 0:00:05]} d6 {[%emt 0:11:35]} 5. Bb5+ {[%emt 0:00:06]} Bd7 {[%emt 0:01:13]} 6. Bxd7+ {[%emt 0:00:06]} Qxd7 {[%emt 0:01:18]} 7. d4 {[%emt 0:00:06]} Nf6 {[%emt 0:11:17]} 8. e5 {[%emt 0:15:28]} Nd5 {[%emt 0:10:41]} 9. dxc5 {[%emt 0:07:47]} dxc5 {[%emt 0:02:55]} 10. O-O {[%emt 0:01:00]} O-O {[%emt 0:03:46]} 11. Qe2 {[%emt 0:07:47]} Rd8 {[%emt 0:09:59]} 12. Na3 {[%emt 0:04:18]} Nc6 {[%emt 0:03:49]} 13. Bd2 {[%emt 0:02:49]} Qe6 {[%emt 0:10:11]} 14. Ng5 {[%emt 0:08:28]} Qc8 {[%emt 0:00:13]} 15. e6 {[%emt 0:06:06]} f6 {[%emt 0:04:27]} 16. Nf7 {[%emt 0:02:47]} Rf8 {[%emt 0:00:05]} 17. f5 {[%emt 0:01:06]} gxf5 {[%emt 0:02:24]} 18. Nh6+ {[%emt 0:06:58]} Kh8 {[%emt 0:00:10]} 19. Nxf5 {[%emt 0:09:07]} Rg8 {[%emt 0:00:29]} 20. Rf3 {[%emt 0:02:20]} Qe8 {[%emt 0:04:46]} 21. Rh3 {[%emt 0:07:40]} Rd8 {[%emt 0:01:38]} 22. Rf1 {[%emt 0:04:09]} Ne5 {[%emt 0:01:09]} 23. Qe4 {[%emt 0:04:01]} Bf8 {[%emt 0:01:39]} 24. Qh4 {[%emt 0:04:42]} Qg6 {[%emt 0:00:56]} 25. Rg3 {[%emt 0:00:11]} Qe8 {[%emt 0:00:05]} 26. Rh3 {[%emt 0:03:17]} Qg6 {[%emt 0:00:01]} 27. Rg3 {[%emt 0:00:32]} Qe8 {[%emt 0:00:01]} 28. Nc2 {[%emt 0:00:34]} Rxg3 {[%emt 0:00:47]} 29. Qxg3 {[%emt 0:00:31]} Qg6 {[%emt 0:00:06]} 30. Qf2 {[%emt 0:00:34]} Nc7 {[%emt 0:00:19]} 31. Be3 {[%emt 0:01:18]} Nxe6 {[%emt 0:01:14]} 32. h3 {[%emt 0:00:47]} b6 {[%emt 0:00:41]} 33. Qe2 {[%emt 0:00:45]} Ng5 {[%emt 0:00:54]} 34. Bxg5 {[%emt 0:00:27]} Qxg5 {[%emt 0:00:05]} 35. Nfe3 {[%emt 0:00:35]} Qg6 {[%emt 0:01:11]} 36. Qa6 {[%emt 0:00:32]} Qe4 {[%emt 0:02:35]} 37. Qxa7 {[%emt 0:00:33]} Bh6 {[%emt 0:00:06]} 38. Re1 {[%emt 0:00:17]} Rg8 {[%emt 0:00:38]} 39. Re2 {[%emt 0:00:45]} Nc4 {[%emt 0:00:50]} 40. Kf2 {[%emt 0:00:43]} Bxe3+ {[%emt 0:00:37]} 0-1

[Event "SVK ECo-C Extraliga 2018-19"]
[Site "Slovakia"]
[Date "2019.02.17"]
[Round "6"]
[White "Holtman, Teodor"]
[Black "Jurcik, Martin"]
[Result "0-1"]
[ECO "B24"]
[WhiteElo "2273"]
[BlackElo "2346"]
[Annotator "NA"]
[PlyCount "65"]
[EventDate "2018.11.10"]
[EventType "team-tourn"]
[EventCountry "SVK"]
[SourceTitle "playchess.com"]
[Source "ChessBase"]
[SourceQuality "1"]
[WhiteTeam "Snina"]
[BlackTeam "Dunajov"]
[TimeControl "40/5400+30:1800+30"]

1. e4 {[%emt 0:00:00]} c5 {[%emt 0:00:00]} 2. Nc3 {[%emt 0:00:00]} Nc6 {[%emt 0:00:47]} 3. Nf3 {[%emt 0:00:00]} Nf6 {[%emt 0:01:11]} 4. d4 {[%emt 0:01:47]} d5 {[%emt 0:01:01]} 5. Bb5 {[%emt 0:02:37]} dxe4 {[%emt 0:02:03]} 6. Ne5 {[%emt 0:06:26]} cxd4 {[%emt 0:06:27]} 7. Nxc6 {[%emt 0:05:09]} bxc6 {[%emt 0:04:56]} 8. Bxc6+ {[%emt 0:00:01]} Bd7 {[%emt 0:00:09]} 9. Bxa8 {[%emt 0:00:15]} dxc3 {[%emt 0:00:04]} 10. Bd5 {[%emt 0:00:47]} cxb2 {[%emt 0:00:19]} 11. Bxf7+ {[%emt 0:00:03]} Kxf7 {[%emt 0:00:12]} 12. Bxb2 {[%emt 0:00:05]} Qa5+ {[%emt 0:02:32]} 13. Qd2 {[%emt 0:04:17]} Qxd2+ {[%emt 0:01:57]} 14. Kxd2 {[%emt 0:00:01]} g6 {[%emt 0:00:45]} 15. Bd4 {[%emt 0:07:00]} Bh6+ {[%emt 0:02:37]} 16. Be3 {[%emt 0:08:57]} Bxe3+ {[%emt 0:02:15]} 17. Kxe3 {[%emt 0:03:15]} Rc8 {[%emt 0:01:42]} 18. Kd2 {[%emt 0:04:08]} e3+ {[%emt 0:08:29]} 19. Kxe3 {[%emt 0:02:33]} Rxc2 {[%emt 0:00:21]} 20. Rhc1 {[%emt 0:03:33]} Ng4+ {[%emt 0:02:53]} 21. Kd4 {[%emt 0:00:14]} Rd2+ {[%emt 0:08:22]} 22. Kc3 {[%emt 0:02:42]} Rxf2 {[%emt 0:02:28]} 23. Rf1 {[%emt 0:00:32]} Rf5 {[%emt 0:07:48]} 24. Kd4 {[%emt 0:12:04]} Kf6 {[%emt 0:09:56]} 25. h3 {[%emt 0:02:04]} e5+ {[%emt 0:01:28]} 26. Kc5 {[%emt 0:00:18]} Ne3 {[%emt 0:00:11]} 27. Rxf5+ {[%emt 0:00:52]} gxf5 {[%emt 0:00:01]} 28. Kd6 {[%emt 0:00:51]} Bb5 {[%emt 0:03:06]} 29. g3 {[%emt 0:06:23]} f4 {[%emt 0:01:21]} 30. gxf4 {[%emt 0:01:27]} exf4 {[%emt 0:00:01]} 31. Re1 {[%emt 0:02:56]} Kf5 {[%emt 0:01:54]} 32. Kc5 {[%emt 0:00:16]} a6 {[%emt 0:00:23]} 33. Kd4 {Ke5+} 0-1

[Event "SVK ECo-C Extraliga 2018-19"]
[Site "Slovakia"]
[Date "2019.02.17"]
[Round "6"]
[White "Janko, Zoltan"]
[Black "Stohl, Igor"]
[Result "0-1"]
[ECO "B96"]
[WhiteElo "2261"]
[BlackElo "2488"]
[Annotator "RC"]
[PlyCount "50"]
[EventDate "2018.11.10"]
[EventType "team-tourn"]
[EventCountry "SVK"]
[SourceTitle "playchess.com"]
[Source "ChessBase"]
[SourceQuality "1"]
[WhiteTeam "Komarno"]
[BlackTeam "Modra"]
[TimeControl "40/5400+30:1800+30"]

1. e4 {[%emt 0:00:00]} c5 {[%emt 0:00:00]} 2. Nf3 {[%emt 0:00:00]} d6 {[%emt 0:00:03]} 3. d4 {[%emt 0:00:32]} cxd4 {[%emt 0:00:11]} 4. Nxd4 {[%emt 0:00:06]} Nf6 {[%emt 0:00:11]} 5. Nc3 {[%emt 0:00:06]} a6 {[%emt 0:00:11]} 6. Bg5 {[%emt 0:01:51]} e6 {[%emt 0:02:07]} 7. f4 {[%emt 0:01:19]} h6 {[%emt 0:00:33]} 8. Bh4 {[%emt 0:00:54]} Qb6 {[%emt 0:00:36]} 9. Qd2 {[%emt 0:02:42]} Qxb2 {[%emt 0:00:21]} 10. Rb1 {[%emt 0:02:19]} Qa3 {[%emt 0:00:57]} 11. Bxf6 {[%emt 0:02:20]} gxf6 {[%emt 0:00:48]} 12. f5 {[%emt 0:00:31]} Nc6 {[%emt 0:04:46]} 13. fxe6 {[%emt 0:05:42]} fxe6 {[%emt 0:01:33]} 14. Be2 {[%emt 0:20:49]} Nxd4 {[%emt 0:39:15]} 15. Qxd4 {[%emt 0:10:28]} Bg7 {[%emt 0:04:03]} 16. Bh5+ {[%emt 0:11:28]} Ke7 {[%emt 0:00:22]} 17. Nd5+ {[%emt 0:05:36]} exd5 {[%emt 0:01:46]} 18. Qxd5 {[%emt 0:00:38]} Qc3+ {[%emt 0:00:55]} 19. Kd1 {[%emt 0:05:32]} Qc7 {[%emt 0:02:25]} 20. e5 {[%emt 0:03:48]} dxe5 {[%emt 0:07:26]} 21. Kc1 {[%emt 0:00:49]} Rf8 {[%emt 0:09:03]} 22. Rd1 {[%emt 0:04:36]} f5 {[%emt 0:02:33]} 23. Rb3 {[%emt 0:11:21]} e4 {[%emt 0:05:59]} 24. Rg3 {[%emt 0:01:33]} Be5 {[%emt 0:01:08]} 25. Rg8 {[%emt 0:03:31]} Be6 {[%emt 0:01:40]} 0-1